[Event "Early-Titled-Tuesday-Blitz-November-28-2023"]
[Site "Chess.com"]
[Date "2023.11.28"]
[Round "2"]
[White "karinachess1"]
[Black "Arvids_Andrejevs"]
[Result "0-1"]
[WhiteElo "2597"]
[BlackElo "2405"]
[TimeControl "180+1"]
[EndTime "8:17:44 PST"]
[Termination "Arvids_Andrejevs won by resignation"]

1. d4 {[%clk 0:03:00.9]} 1... Nf6 {[%clk 0:02:59.8]} 2. c4 {[%clk 0:03:00.8]}
2... c5 {[%clk 0:03:00.5]} 3. d5 {[%clk 0:02:58.8]} 3... b5 {[%clk 0:03:00.8]}
4. cxb5 {[%clk 0:02:58.9]} 4... a6 {[%clk 0:03:01.3]} 5. b6 {[%clk 0:02:59.3]}
5... Qxb6 {[%clk 0:03:01]} 6. Nc3 {[%clk 0:02:59.7]} 6... Bb7 {[%clk 0:03:00.7]}
7. Nf3 {[%clk 0:02:56.1]} 7... g6 {[%clk 0:02:59.7]} 8. e4 {[%clk 0:02:55.6]}
8... d6 {[%clk 0:02:59.3]} 9. Nd2 {[%clk 0:02:56.1]} 9... Bg7 {[%clk 0:02:59.6]}
10. Nc4 {[%clk 0:02:56.7]} 10... Qc7 {[%clk 0:02:58.3]} 11. Bd3 {[%clk
0:02:51.4]} 11... O-O {[%clk 0:02:58.3]} 12. O-O {[%clk 0:02:51.4]} 12... Nbd7
{[%clk 0:02:57.2]} 13. f4 {[%clk 0:02:47.8]} 13... Nb6 {[%clk 0:02:53]} 14. Re1
{[%clk 0:02:43.3]} 14... Nxc4 {[%clk 0:02:50.1]} 15. Bxc4 {[%clk 0:02:44.2]}
15... Nd7 {[%clk 0:02:49.4]} 16. a4 {[%clk 0:02:34.5]} 16... Nb6 {[%clk
0:02:36.9]} 17. Bf1 {[%clk 0:02:34.4]} 17... e6 {[%clk 0:02:31]} 18. a5 {[%clk
0:02:29.8]} 18... Nd7 {[%clk 0:02:30.6]} 19. Be3 {[%clk 0:02:24.5]} 19... exd5
{[%clk 0:02:24.5]} 20. exd5 {[%clk 0:02:03.9]} 20... Nf6 {[%clk 0:02:16.6]} 21.
Bc4 {[%clk 0:02:00.5]} 21... Rfe8 {[%clk 0:02:12.2]} 22. Qf3 {[%clk 0:01:52.4]}
22... Bc8 {[%clk 0:02:10.5]} 23. h3 {[%clk 0:01:44.3]} 23... Bd7 {[%clk
0:02:10.5]} 24. g4 {[%clk 0:01:27]} 24... h5 {[%clk 0:02:02.3]} 25. f5 {[%clk
0:01:25.7]} 25... Nh7 {[%clk 0:01:26.7]} 26. Bd3 {[%clk 0:01:21.6]} 26... hxg4
{[%clk 0:01:02.2]} 27. hxg4 {[%clk 0:01:21.1]} 27... Rxe3 {[%clk 0:01:02.4]} 28.
Rxe3 {[%clk 0:01:18.3]} 28... Bd4 {[%clk 0:01:02.8]} 29. Kg2 {[%clk 0:01:09.1]}
29... Bxe3 {[%clk 0:01:02.2]} 30. Qxe3 {[%clk 0:01:10]} 30... Qb7 {[%clk
0:00:56.1]} 31. Qd2 {[%clk 0:00:46.7]} 31... Rb8 {[%clk 0:00:52.7]} 32. Rb1
{[%clk 0:00:33.3]} 32... Bb5 {[%clk 0:00:43.3]} 33. Nxb5 {[%clk 0:00:30.6]}
33... Qxd5+ {[%clk 0:00:43.4]} 34. Kf2 {[%clk 0:00:17.8]} 34... Rxb5 {[%clk
0:00:37.6]} 35. Qe3 {[%clk 0:00:14.4]} 35... Rb3 {[%clk 0:00:30.4]} 36. Rd1
{[%clk 0:00:11.6]} 36... Rxb2+ {[%clk 0:00:25.3]} 37. Be2 {[%clk 0:00:09.7]}
37... Qxd1 {[%clk 0:00:24.5]} 38. Qe8+ {[%clk 0:00:09.4]} 38... Kg7 {[%clk
0:00:25]} 39. fxg6 {[%clk 0:00:08.7]} 39... Qxe2+ {[%clk 0:00:24]} 40. Qxe2
{[%clk 0:00:09.6]} 40... Rxe2+ {[%clk 0:00:24.5]} 41. Kxe2 {[%clk 0:00:10.5]}
41... Kxg6 {[%clk 0:00:25.1]} 0-1

[Event "Early-Titled-Tuesday-Blitz-November-28-2023"]
[Site "Chess.com"]
[Date "2023.11.28"]
[Round "2"]
[White "Grandelicious"]
[Black "elmusmolamas"]
[Result "1/2-1/2"]
[WhiteElo "2892"]
[BlackElo "2591"]
[TimeControl "180+1"]
[EndTime "8:17:47 PST"]
[Termination "Game drawn by agreement"]

1. d4 {[%clk 0:03:00.9]} 1... Nf6 {[%clk 0:02:53.3]} 2. c4 {[%clk 0:03:00.4]}
2... c6 {[%clk 0:02:47.5]} 3. Nc3 {[%clk 0:02:57.5]} 3... d5 {[%clk 0:02:45.2]}
4. Nf3 {[%clk 0:02:58.1]} 4... dxc4 {[%clk 0:02:42.3]} 5. a4 {[%clk 0:02:58.2]}
5... e6 {[%clk 0:02:41]} 6. e3 {[%clk 0:02:54.2]} 6... c5 {[%clk 0:02:41.6]} 7.
Bxc4 {[%clk 0:02:52.8]} 7... cxd4 {[%clk 0:02:42.3]} 8. exd4 {[%clk 0:02:50.3]}
8... Be7 {[%clk 0:02:33.1]} 9. O-O {[%clk 0:02:48]} 9... Nc6 {[%clk 0:02:33.8]}
10. Be3 {[%clk 0:02:47.4]} 10... O-O {[%clk 0:02:33.7]} 11. Qe2 {[%clk 0:02:48]}
11... Nb4 {[%clk 0:02:30.9]} 12. Rad1 {[%clk 0:02:47.3]} 12... Bd7 {[%clk
0:02:11.2]} 13. Ne5 {[%clk 0:02:44.3]} 13... Bc6 {[%clk 0:02:07.8]} 14. Nxc6
{[%clk 0:02:29]} 14... bxc6 {[%clk 0:02:08.7]} 15. Bf4 {[%clk 0:02:29.4]} 15...
Qa5 {[%clk 0:02:03.1]} 16. Be5 {[%clk 0:02:28.6]} 16... Rfd8 {[%clk 0:01:46.1]}
17. Kh1 {[%clk 0:02:26.5]} 17... Nbd5 {[%clk 0:01:45.4]} 18. Qc2 {[%clk
0:02:15.2]} 18... Nd7 {[%clk 0:01:26.4]} 19. Bg3 {[%clk 0:01:59.7]} 19... N7b6
{[%clk 0:00:53.8]} 20. Bb3 {[%clk 0:01:52.8]} 20... Rac8 {[%clk 0:00:48]} 21.
Ne4 {[%clk 0:01:46.2]} 21... Nf6 {[%clk 0:00:41.2]} 22. Nc5 {[%clk 0:01:43.9]}
22... Bxc5 {[%clk 0:00:32.2]} 23. dxc5 {[%clk 0:01:44.8]} 23... Rxd1 {[%clk
0:00:29.2]} 24. Rxd1 {[%clk 0:01:41.3]} 24... Nbd5 {[%clk 0:00:29.9]} 25. h3
{[%clk 0:01:35.3]} 25... Qb4 {[%clk 0:00:30.1]} 26. Qc4 {[%clk 0:01:26.3]} 26...
Qxc4 {[%clk 0:00:29.6]} 27. Bxc4 {[%clk 0:01:27.2]} 27... Ne4 {[%clk 0:00:25.4]}
28. Bxd5 {[%clk 0:01:09.5]} 28... exd5 {[%clk 0:00:26]} 29. b4 {[%clk
0:01:04.4]} 29... Nxg3+ {[%clk 0:00:22.2]} 30. fxg3 {[%clk 0:01:05.3]} 30... a5
{[%clk 0:00:12.8]} 31. bxa5 {[%clk 0:00:54.6]} 31... Ra8 {[%clk 0:00:13]} 32.
Rb1 {[%clk 0:00:55.3]} 32... Kf8 {[%clk 0:00:12.5]} 33. Rb6 {[%clk 0:00:55.3]}
33... Rxa5 {[%clk 0:00:12.6]} 34. Rxc6 {[%clk 0:00:56]} 34... Rxa4 {[%clk
0:00:13.2]} 35. Rd6 {[%clk 0:00:56.7]} 35... d4 {[%clk 0:00:13.1]} 36. Kh2
{[%clk 0:00:55.1]} 36... Rc4 {[%clk 0:00:10.1]} 37. c6 {[%clk 0:00:54.4]} 37...
Ke7 {[%clk 0:00:10.4]} 38. Rd7+ {[%clk 0:00:55.1]} 38... Ke6 {[%clk 0:00:10.9]}
39. g4 {[%clk 0:00:55.8]} 39... Rxc6 {[%clk 0:00:09.9]} 40. Rxd4 {[%clk
0:00:56.5]} 40... h6 {[%clk 0:00:08.9]} 41. Ra4 {[%clk 0:00:56.3]} 41... Kf6
{[%clk 0:00:07.6]} 42. Ra8 {[%clk 0:00:56.2]} 42... Kg6 {[%clk 0:00:07.7]} 43.
Rf8 {[%clk 0:00:56.1]} 43... Rc7 {[%clk 0:00:07.5]} 44. Rh8 {[%clk 0:00:56.3]}
44... Rb7 {[%clk 0:00:07.5]} 45. h4 {[%clk 0:00:56.4]} 45... f6 {[%clk
0:00:07.2]} 46. Kh3 {[%clk 0:00:56.3]} 46... Rb3+ {[%clk 0:00:06.9]} 47. g3
{[%clk 0:00:56.9]} 47... Rb7 {[%clk 0:00:07.8]} 48. Rd8 {[%clk 0:00:56.7]} 48...
Rb3 {[%clk 0:00:07.1]} 49. Rd7 {[%clk 0:00:56.1]} 49... Rb5 {[%clk 0:00:07.4]}
50. Ra7 {[%clk 0:00:56.1]} 50... Rc5 {[%clk 0:00:07.4]} 51. Rb7 {[%clk
0:00:51.9]} 51... Ra5 {[%clk 0:00:05.5]} 52. Rb8 {[%clk 0:00:52.4]} 52... Rc5
{[%clk 0:00:06]} 1/2-1/2

[Event "Early-Titled-Tuesday-Blitz-November-28-2023"]
[Site "Chess.com"]
[Date "2023.11.28"]
[Round "2"]
[White "blank0923"]
[Black "chito89"]
[Result "1-0"]
[WhiteElo "2590"]
[BlackElo "2854"]
[TimeControl "180+1"]
[EndTime "8:17:47 PST"]
[Termination "blank0923 won by resignation"]

1. e4 {[%clk 0:02:53.2]} 1... c5 {[%clk 0:03:00.2]} 2. Nc3 {[%clk 0:02:50]} 2...
e6 {[%clk 0:02:59.4]} 3. g3 {[%clk 0:02:50.7]} 3... Nc6 {[%clk 0:02:50.5]} 4.
Nge2 {[%clk 0:02:50.1]} 4... Nf6 {[%clk 0:02:46.7]} 5. Bg2 {[%clk 0:02:50.3]}
5... d6 {[%clk 0:02:45]} 6. O-O {[%clk 0:02:49.7]} 6... Be7 {[%clk 0:02:45.4]}
7. d3 {[%clk 0:02:44.6]} 7... O-O {[%clk 0:02:44.6]} 8. h3 {[%clk 0:02:45.1]}
8... Rb8 {[%clk 0:02:44.2]} 9. a4 {[%clk 0:02:44.9]} 9... a6 {[%clk 0:02:44.1]}
10. f4 {[%clk 0:02:41.3]} 10... d5 {[%clk 0:02:42.4]} 11. g4 {[%clk 0:02:30]}
11... dxe4 {[%clk 0:02:37.9]} 12. Nxe4 {[%clk 0:02:28.8]} 12... Nxe4 {[%clk
0:02:36.2]} 13. dxe4 {[%clk 0:02:28.8]} 13... Qxd1 {[%clk 0:02:27.8]} 14. Rxd1
{[%clk 0:02:29.7]} 14... b5 {[%clk 0:02:23.4]} 15. axb5 {[%clk 0:02:29.1]} 15...
axb5 {[%clk 0:02:24.3]} 16. e5 {[%clk 0:02:23.5]} 16... Bb7 {[%clk 0:02:22.3]}
17. Rd7 {[%clk 0:02:09.7]} 17... c4 {[%clk 0:01:25.2]} 18. Be3 {[%clk
0:01:57.3]} 18... Bh4 {[%clk 0:01:06.5]} 19. Rxb7 {[%clk 0:01:52.5]} 19... Rxb7
{[%clk 0:01:07.4]} 20. Bxc6 {[%clk 0:01:52.9]} 20... Rbb8 {[%clk 0:01:08.1]} 21.
Kg2 {[%clk 0:01:27.6]} 21... b4 {[%clk 0:01:06.4]} 22. Kf3 {[%clk 0:01:23.6]}
22... Rfd8 {[%clk 0:01:01.8]} 23. Nd4 {[%clk 0:01:10.9]} 23... h6 {[%clk
0:00:58.6]} 24. Be4 {[%clk 0:01:02]} 24... Rdc8 {[%clk 0:00:56.2]} 25. Nc6
{[%clk 0:00:58.3]} 25... Rb7 {[%clk 0:00:52.9]} 26. Ra4 {[%clk 0:00:54.4]} 26...
b3 {[%clk 0:00:51]} 27. c3 {[%clk 0:00:51]} 27... Rd7 {[%clk 0:00:51.5]} 28. Bd4
{[%clk 0:00:46.4]} 28... g6 {[%clk 0:00:39.2]} 29. Rxc4 {[%clk 0:00:44.1]} 29...
Kg7 {[%clk 0:00:36.7]} 30. Ra4 {[%clk 0:00:36.6]} 30... f5 {[%clk 0:00:28.4]}
31. exf6+ {[%clk 0:00:37.5]} 31... Bxf6 {[%clk 0:00:28.4]} 32. Ne5 {[%clk
0:00:31.9]} 32... Rdc7 {[%clk 0:00:23.2]} 33. Ra3 {[%clk 0:00:31.3]} 33... g5
{[%clk 0:00:20.7]} 34. Rxb3 {[%clk 0:00:27.8]} 34... gxf4 {[%clk 0:00:19]} 35.
Kxf4 {[%clk 0:00:28]} 35... Rf8 {[%clk 0:00:19.6]} 36. Ke3 {[%clk 0:00:26.2]}
36... Bg5+ {[%clk 0:00:19.5]} 37. Ke2 {[%clk 0:00:26.2]} 37... Kg8 {[%clk
0:00:20.4]} 38. Nf3 {[%clk 0:00:25.9]} 38... Bf4 {[%clk 0:00:19.6]} 39. Rb6
{[%clk 0:00:24.8]} 39... Re8 {[%clk 0:00:17.7]} 40. Ra6 {[%clk 0:00:22.5]} 40...
Rb8 {[%clk 0:00:16.9]} 41. b4 {[%clk 0:00:21.6]} 41... Re8 {[%clk 0:00:17.5]}
42. Ne5 {[%clk 0:00:20.7]} 42... h5 {[%clk 0:00:16.3]} 43. gxh5 {[%clk
0:00:20.6]} 43... Rh7 {[%clk 0:00:15.9]} 44. Bxh7+ {[%clk 0:00:20.6]} 1-0

[Event "Early-Titled-Tuesday-Blitz-November-28-2023"]
[Site "Chess.com"]
[Date "2023.11.28"]
[Round "2"]
[White "Manukyan_Artak"]
[Black "Zapateado"]
[Result "1/2-1/2"]
[WhiteElo "2583"]
[BlackElo "2361"]
[TimeControl "180+1"]
[EndTime "8:17:47 PST"]
[Termination "Game drawn by agreement"]

1. e4 {[%clk 0:02:59.3]} 1... c5 {[%clk 0:02:48.5]} 2. Nf3 {[%clk 0:02:58.8]}
2... g6 {[%clk 0:02:49]} 3. c3 {[%clk 0:02:56.7]} 3... Bg7 {[%clk 0:02:46.5]} 4.
d4 {[%clk 0:02:56.8]} 4... cxd4 {[%clk 0:02:47.4]} 5. cxd4 {[%clk 0:02:56.3]}
5... d5 {[%clk 0:02:47.9]} 6. exd5 {[%clk 0:02:56.3]} 6... Nf6 {[%clk
0:02:47.3]} 7. Bb5+ {[%clk 0:02:55.4]} 7... Nbd7 {[%clk 0:02:45.7]} 8. Nc3
{[%clk 0:02:55.1]} 8... O-O {[%clk 0:02:45]} 9. Bxd7 {[%clk 0:02:55.1]} 9...
Bxd7 {[%clk 0:02:43.2]} 10. Qb3 {[%clk 0:02:49]} 10... Qb6 {[%clk 0:02:35.2]}
11. Qxb6 {[%clk 0:02:41.9]} 11... axb6 {[%clk 0:02:36.1]} 12. Ne5 {[%clk
0:02:40.5]} 12... Bf5 {[%clk 0:02:20.5]} 13. O-O {[%clk 0:02:33.6]} 13... Ra5
{[%clk 0:02:13]} 14. Bd2 {[%clk 0:02:26.2]} 14... Nxd5 {[%clk 0:02:01.2]} 15.
Nxd5 {[%clk 0:02:22]} 15... Rxd5 {[%clk 0:02:00.5]} 16. Bc3 {[%clk 0:02:22.9]}
16... b5 {[%clk 0:01:56.3]} 17. a3 {[%clk 0:02:22]} 17... Rfd8 {[%clk
0:01:46.8]} 18. f4 {[%clk 0:02:17.1]} 18... h5 {[%clk 0:01:38.6]} 19. Rfe1
{[%clk 0:02:11]} 19... Bxe5 {[%clk 0:01:34.2]} 20. Rxe5 {[%clk 0:02:09.7]} 20...
Rxe5 {[%clk 0:01:32.1]} 21. fxe5 {[%clk 0:02:10.6]} 21... Be6 {[%clk 0:01:25.2]}
22. Kf2 {[%clk 0:02:08]} 22... Bd5 {[%clk 0:01:19]} 23. Rg1 {[%clk 0:02:07.7]}
23... f6 {[%clk 0:01:12.5]} 24. g4 {[%clk 0:01:59.4]} 24... hxg4 {[%clk
0:01:01.2]} 25. Rxg4 {[%clk 0:02:00.3]} 25... Kf7 {[%clk 0:00:53.2]} 26. h4
{[%clk 0:01:56.9]} 26... Rh8 {[%clk 0:00:45.9]} 27. Kg3 {[%clk 0:01:56.5]} 27...
Rh5 {[%clk 0:00:45.7]} 28. Rf4 {[%clk 0:01:54.6]} 28... Ke6 {[%clk 0:00:41.1]}
29. Rf2 {[%clk 0:01:46.7]} 29... g5 {[%clk 0:00:37.8]} 30. hxg5 {[%clk 0:01:44]}
30... Rxg5+ {[%clk 0:00:38.7]} 31. Kh2 {[%clk 0:01:42]} 31... f5 {[%clk
0:00:37.3]} 32. Kh3 {[%clk 0:01:36]} 32... Be4 {[%clk 0:00:30.3]} 33. Kh4 {[%clk
0:01:35.9]} 33... Rg4+ {[%clk 0:00:29.7]} 34. Kh5 {[%clk 0:01:35.9]} 34... Rg1
{[%clk 0:00:28.4]} 35. Kh6 {[%clk 0:01:31.3]} 35... Kf7 {[%clk 0:00:20.8]} 36.
d5 {[%clk 0:01:24.4]} 36... Rg6+ {[%clk 0:00:16.1]} 37. Kh5 {[%clk 0:01:22.2]}
37... Rg2 {[%clk 0:00:08.7]} 38. e6+ {[%clk 0:01:14]} 38... Ke8 {[%clk
0:00:04.8]} 39. Rxg2 {[%clk 0:01:04]} 39... Bxg2 {[%clk 0:00:05.7]} 40. Kg5
{[%clk 0:01:04.1]} 40... Bxd5 {[%clk 0:00:05.1]} 41. Kxf5 {[%clk 0:01:04.5]}
41... Kd8 {[%clk 0:00:04.9]} 42. Ke5 {[%clk 0:01:04.3]} 42... Bb3 {[%clk
0:00:03.5]} 43. Bb4 {[%clk 0:01:03.6]} 43... Ke8 {[%clk 0:00:03.8]} 44. Bc5
{[%clk 0:01:03.5]} 44... Ba2 {[%clk 0:00:04.1]} 45. Bb6 {[%clk 0:01:03.4]} 45...
Bc4 {[%clk 0:00:04.5]} 46. Bd4 {[%clk 0:01:03.1]} 46... Bb3 {[%clk 0:00:04.8]}
47. Be3 {[%clk 0:01:03.5]} 47... Bc4 {[%clk 0:00:05.4]} 48. Bg5 {[%clk
0:01:04.4]} 48... Bb3 {[%clk 0:00:06]} 49. Bh4 {[%clk 0:01:03.1]} 49... Bc4
{[%clk 0:00:06.4]} 50. Bf2 {[%clk 0:01:01.4]} 50... Bb3 {[%clk 0:00:06]} 51. Bb6
{[%clk 0:01:01.2]} 51... Bc4 {[%clk 0:00:06.3]} 52. Bc5 {[%clk 0:00:58.7]} 52...
Bb3 {[%clk 0:00:06.5]} 1/2-1/2

[Event "Early-Titled-Tuesday-Blitz-November-28-2023"]
[Site "Chess.com"]
[Date "2023.11.28"]
[Round "2"]
[White "MelihKaanCan"]
[Black "Timerkhanov"]
[Result "0-1"]
[WhiteElo "2401"]
[BlackElo "2688"]
[TimeControl "180+1"]
[EndTime "8:17:48 PST"]
[Termination "Timerkhanov won by resignation"]

1. e4 {[%clk 0:02:57.5]} 1... c6 {[%clk 0:02:59.6]} 2. d4 {[%clk 0:02:56.8]}
2... d5 {[%clk 0:03:00]} 3. exd5 {[%clk 0:02:57.5]} 3... cxd5 {[%clk 0:03:00.9]}
4. Bd3 {[%clk 0:02:58.2]} 4... Nc6 {[%clk 0:03:01.3]} 5. c3 {[%clk 0:02:58.7]}
5... Nf6 {[%clk 0:03:01.6]} 6. h3 {[%clk 0:02:58.7]} 6... g6 {[%clk 0:03:01.2]}
7. Nf3 {[%clk 0:02:59]} 7... Bf5 {[%clk 0:03:00.7]} 8. Ne5 {[%clk 0:02:59.6]}
8... Bxd3 {[%clk 0:02:55.5]} 9. Nxd3 {[%clk 0:03:00.5]} 9... Bg7 {[%clk
0:02:55.3]} 10. Bf4 {[%clk 0:02:54.6]} 10... O-O {[%clk 0:02:55.5]} 11. Nd2
{[%clk 0:02:54.4]} 11... Ne4 {[%clk 0:02:51.9]} 12. O-O {[%clk 0:02:48.1]} 12...
Nxd2 {[%clk 0:02:45.3]} 13. Qxd2 {[%clk 0:02:47.7]} 13... e6 {[%clk 0:02:45.3]}
14. Rae1 {[%clk 0:02:38.4]} 14... b5 {[%clk 0:02:45.2]} 15. Bh6 {[%clk
0:02:17.3]} 15... a5 {[%clk 0:02:42.5]} 16. Bxg7 {[%clk 0:02:17.2]} 16... Kxg7
{[%clk 0:02:42.3]} 17. Qf4 {[%clk 0:02:05.8]} 17... b4 {[%clk 0:02:39]} 18. Nc5
{[%clk 0:01:58.8]} 18... Qb8 {[%clk 0:02:11.4]} 19. Qg5 {[%clk 0:01:52.4]} 19...
Qd6 {[%clk 0:02:09.6]} 20. h4 {[%clk 0:01:50.9]} 20... h6 {[%clk 0:02:08.7]} 21.
Qg4 {[%clk 0:01:49.6]} 21... h5 {[%clk 0:02:07.6]} 22. Qf3 {[%clk 0:01:47.8]}
22... bxc3 {[%clk 0:02:07.3]} 23. bxc3 {[%clk 0:01:47.3]} 23... Rab8 {[%clk
0:02:06.2]} 24. Rb1 {[%clk 0:01:47.9]} 24... Rxb1 {[%clk 0:02:04.7]} 25. Rxb1
{[%clk 0:01:47.8]} 25... Rb8 {[%clk 0:02:05.3]} 26. Qd1 {[%clk 0:01:43]} 26...
Ne7 {[%clk 0:02:00.1]} 27. g3 {[%clk 0:01:37.3]} 27... Nf5 {[%clk 0:01:59.1]}
28. Kg2 {[%clk 0:01:34.3]} 28... Rxb1 {[%clk 0:01:41.4]} 29. Qxb1 {[%clk
0:01:33.2]} 29... e5 {[%clk 0:01:41.9]} 30. Nb7 {[%clk 0:00:57.5]} 30... Qb8
{[%clk 0:01:41.5]} 31. dxe5 {[%clk 0:00:55.7]} 31... Qxe5 {[%clk 0:01:41.1]} 32.
Nxa5 {[%clk 0:00:54]} 32... Qxc3 {[%clk 0:01:41]} 33. Nb3 {[%clk 0:00:52.3]}
33... d4 {[%clk 0:01:39.7]} 34. a4 {[%clk 0:00:49.2]} 34... d3 {[%clk
0:01:35.8]} 35. a5 {[%clk 0:00:46.4]} 35... Nd4 {[%clk 0:00:56.1]} 36. Nxd4
{[%clk 0:00:24.1]} 36... Qxd4 {[%clk 0:00:57]} 37. a6 {[%clk 0:00:24.7]} 37...
d2 {[%clk 0:00:57.4]} 38. Qd1 {[%clk 0:00:20.9]} 38... Qe4+ {[%clk 0:00:56.6]}
39. Kf1 {[%clk 0:00:18.7]} 39... Qd3+ {[%clk 0:00:56.6]} 40. Kg2 {[%clk
0:00:16.4]} 40... Qe4+ {[%clk 0:00:51.1]} 41. Kf1 {[%clk 0:00:16.3]} 41... Qc4+
{[%clk 0:00:51.6]} 42. Kg2 {[%clk 0:00:14.4]} 42... Qc1 {[%clk 0:00:51.8]} 43.
Qe2 {[%clk 0:00:04.7]} 43... d1=Q {[%clk 0:00:50.6]} 44. Qe5+ {[%clk 0:00:04.5]}
44... Kh7 {[%clk 0:00:49.3]} 45. a7 {[%clk 0:00:04.7]} 45... Qc6+ {[%clk
0:00:47.4]} 46. f3 {[%clk 0:00:01.7]} 46... Qcxf3+ {[%clk 0:00:46.8]} 0-1

[Event "Early-Titled-Tuesday-Blitz-November-28-2023"]
[Site "Chess.com"]
[Date "2023.11.28"]
[Round "2"]
[White "Gabix_94"]
[Black "jup1978"]
[Result "1-0"]
[WhiteElo "2756"]
[BlackElo "2524"]
[TimeControl "180+1"]
[EndTime "8:17:49 PST"]
[Termination "Gabix_94 won by resignation"]

1. d4 {[%clk 0:03:00.9]} 1... Nf6 {[%clk 0:02:58.3]} 2. Nc3 {[%clk 0:03:01.2]}
2... d5 {[%clk 0:02:56.9]} 3. Bf4 {[%clk 0:03:00.9]} 3... Bf5 {[%clk 0:02:45.9]}
4. e3 {[%clk 0:03:00]} 4... e6 {[%clk 0:02:42.4]} 5. Nf3 {[%clk 0:02:58]} 5...
Bd6 {[%clk 0:02:39.2]} 6. Ne5 {[%clk 0:02:57.2]} 6... Bxe5 {[%clk 0:02:36.4]} 7.
dxe5 {[%clk 0:02:56.2]} 7... Ne4 {[%clk 0:02:22.3]} 8. Nxe4 {[%clk 0:02:52]}
8... Bxe4 {[%clk 0:02:20.3]} 9. Qd2 {[%clk 0:02:50.8]} 9... Nd7 {[%clk
0:02:14.5]} 10. f3 {[%clk 0:02:49.2]} 10... Bg6 {[%clk 0:02:13.9]} 11. h4 {[%clk
0:02:48.6]} 11... h5 {[%clk 0:02:11.9]} 12. O-O-O {[%clk 0:02:46.4]} 12... Qe7
{[%clk 0:02:12.3]} 13. Kb1 {[%clk 0:02:36.9]} 13... O-O-O {[%clk 0:02:11.7]} 14.
Be2 {[%clk 0:02:32.7]} 14... Nb6 {[%clk 0:02:09.7]} 15. b3 {[%clk 0:02:30.3]}
15... Kb8 {[%clk 0:02:06.6]} 16. Qc3 {[%clk 0:02:28.6]} 16... Nd7 {[%clk
0:02:03.7]} 17. Kb2 {[%clk 0:02:23.8]} 17... Qc5 {[%clk 0:02:03.1]} 18. Qxc5
{[%clk 0:02:14.8]} 18... Nxc5 {[%clk 0:02:04]} 19. Bg5 {[%clk 0:02:14.3]} 19...
Rc8 {[%clk 0:01:54.2]} 20. Rd2 {[%clk 0:02:11]} 20... Nd7 {[%clk 0:01:51.8]} 21.
Bf4 {[%clk 0:02:09.4]} 21... Nb6 {[%clk 0:01:37.5]} 22. a4 {[%clk 0:02:07.3]}
22... a5 {[%clk 0:01:34.6]} 23. Rh3 {[%clk 0:01:59.5]} 23... c5 {[%clk
0:01:33.5]} 24. Bd1 {[%clk 0:01:51.1]} 24... c4 {[%clk 0:01:33.3]} 25. Rd4
{[%clk 0:01:51.2]} 25... Rc6 {[%clk 0:01:28]} 26. e4 {[%clk 0:01:48.9]} 26...
dxe4 {[%clk 0:01:26]} 27. fxe4 {[%clk 0:01:49.8]} 27... Rhc8 {[%clk 0:01:18.9]}
28. Rc3 {[%clk 0:01:46.5]} 28... cxb3 {[%clk 0:01:17.8]} 29. Rxc6 {[%clk
0:01:46]} 29... Rxc6 {[%clk 0:01:16.7]} 30. cxb3 {[%clk 0:01:46.2]} 30... Rc7
{[%clk 0:01:11.6]} 31. g4 {[%clk 0:01:39.5]} 31... hxg4 {[%clk 0:01:09.6]} 32.
Bxg4 {[%clk 0:01:40.4]} 32... Rd7 {[%clk 0:01:09.2]} 33. Kc3 {[%clk 0:01:39.5]}
33... Kc7 {[%clk 0:01:05.2]} 34. h5 {[%clk 0:01:37.5]} 34... Bh7 {[%clk
0:01:04.5]} 35. Bg5 {[%clk 0:01:33.9]} 35... Rxd4 {[%clk 0:01:00.6]} 36. Kxd4
{[%clk 0:01:34.8]} 36... Nd7 {[%clk 0:00:58.7]} 37. Be7 {[%clk 0:01:33.3]} 37...
Kc6 {[%clk 0:00:57.4]} 38. Be2 {[%clk 0:01:30.8]} 38... b6 {[%clk 0:00:49]} 39.
Bd6 {[%clk 0:01:26.2]} 39... Kb7 {[%clk 0:00:43.8]} 40. Bb5 {[%clk 0:01:25.6]}
40... Kc8 {[%clk 0:00:42.9]} 41. Ke3 {[%clk 0:01:17.2]} 41... Nc5 {[%clk
0:00:32.3]} 42. Be8 {[%clk 0:01:06.8]} 42... Nxe4 {[%clk 0:00:25.2]} 43. Bf8
{[%clk 0:01:04]} 43... Nc5 {[%clk 0:00:21.8]} 44. Bxf7 {[%clk 0:01:02.9]} 44...
Kd7 {[%clk 0:00:19.8]} 45. Bxg7 {[%clk 0:00:58.9]} 45... Nxb3 {[%clk 0:00:19.3]}
46. Bf8 {[%clk 0:00:56.9]} 46... Nc5 {[%clk 0:00:18.7]} 47. Bxc5 {[%clk
0:00:53.2]} 47... bxc5 {[%clk 0:00:19.6]} 48. Kd2 {[%clk 0:00:50.3]} 48... Kc6
{[%clk 0:00:15.2]} 49. Bxe6 {[%clk 0:00:48.7]} 49... c4 {[%clk 0:00:12.8]} 50.
Bxc4 {[%clk 0:00:48.7]} 50... Kc5 {[%clk 0:00:13.3]} 51. Bd3 {[%clk 0:00:48.9]}
51... Bg8 {[%clk 0:00:13.3]} 52. Ke3 {[%clk 0:00:47.7]} 52... Kd5 {[%clk
0:00:13.2]} 53. Kf4 {[%clk 0:00:48.2]} 53... Kd4 {[%clk 0:00:12.6]} 54. Bf5
{[%clk 0:00:48.5]} 54... Kc5 {[%clk 0:00:11.4]} 55. h6 {[%clk 0:00:47.8]} 1-0